bitfinex/quotes_SOLUSD_20250928
["timestamp","ask_amount","ask_price","bid_price","bid_amount"]
[1759098717209,1.52134186,210.08,210.06,0.72]
[1759098717416,1.52134186,210.08,210.04,4.782]
[1759098717620,1.52134186,210.06,210.04,5.502]
[1759098717914,1.52134186,210.06,210.04,4.782]
[1759098718220,26.0,210.14,210.05,0.72]
[1759098718522,65.70134186,210.12,210.07,4.782]
[1759098718710,64.18,210.12,210.08,0.72]
[1759098718893,1.52134186,210.15,210.08,0.72]
[1759098719393,26.0,210.16,210.08,0.72]
[1759098719616,1.52134186,210.15,210.08,0.72]
[1759098719915,26.0,210.16,210.08,0.72]
[1759098720114,1.52134186,210.14,210.08,0.72]
[1759098720320,1.52134186,210.1,210.08,4.782]
[1759098720906,2.02134186,210.1,210.08,4.782]
[1759098721103,1.52134186,210.1,210.08,4.782]
[1759098721296,78.27559401,210.09,210.08,4.782]
[1759098721500,77.77559401,210.09,210.08,4.782]
[1759098721711,1.52134186,210.1,210.08,4.782]
[1759098722091,13.59559401,210.09,210.08,4.782]
[1759098722291,14.09559401,210.09,210.02,0.72]
[1759098722499,1.52134186,210.07,210.02,0.72]
[1759098722716,1.52134186,210.07,210.03,4.782]
[1759098722896,1.52134186,210.07,210.04,0.72]
[1759098723212,1.52134186,210.07,210.05,0.72]
[1759098723516,27.52134186,210.09,210.06,0.72]
[1759098723706,26.0,210.09,210.06,0.72]
[1759098723901,13.59559401,210.14,210.06,0.72]
[1759098724217,1.52134186,210.14,210.06,0.72]
[1759098724426,27.52134186,210.14,210.06,0.72]
[1759098724608,27.52134186,210.14,210.08,4.782]
[1759098724796,27.52134186,210.14,210.09,0.72]
[1759098725115,27.52134186,210.14,210.1,0.72]
[1759098725318,1.52134186,210.13,210.08,4.782]
[1759098725511,1.52134186,210.13,210.09,0.72]
[1759098725818,1.52134186,210.13,210.1,0.72]
[1759098725994,1.52134186,210.13,210.11,0.72]
[1759098727020,1.52134186,210.13,210.12,4.782]
[1759098727319,26.0,210.17,210.12,5.502]
[1759098727526,1.52134186,210.15,210.12,4.782]
[1759098727815,26.5,210.16,210.13,4.782]
[1759098728017,1.52134186,210.14,210.13,4.782]
[1759098728216,26.0,210.16,210.13,4.782]
[1759098728393,1.52134186,210.14,210.13,4.782]
[1759098728598,26.0,210.16,210.13,4.782]
[1759098728820,1.52134186,210.14,210.13,4.782]
[1759098729720,2.02134186,210.14,210.13,4.782]
[1759098729909,2.02134186,210.14,210.07,5.502]
[1759098730217,1.52134186,210.11,210.07,5.502]
[1759098730415,1.52134186,210.11,210.08,0.72]
[1759098731221,1.52134186,210.11,210.08,4.782]
[1759098731919,2.02134186,210.11,210.08,4.782]
[1759098732215,2.02134186,210.11,210.06,0.72]
[1759098732393,26.0,210.13,210.07,0.72]
[1759098732593,1.52134186,210.1,210.07,0.72]
[1759098732798,1.52134186,210.1,210.08,0.72]
[1759098733020,1.52134186,210.12,210.09,0.72]
[1759098733199,1.52134186,210.12,210.1,0.72]
[1759098733404,1.52134186,210.12,210.11,0.72]
[1759098733612,13.59559401,210.17,210.11,0.72]
[1759098733796,26.0,210.14,210.11,0.72]
[1759098733998,26.0,210.14,210.12,0.72]
[1759098734301,26.0,210.14,210.13,0.72]
[1759098735211,1.52134186,210.16,210.14,4.782]
[1759098735526,1.52134186,210.21,210.15,0.72]
[1759098736193,26.0,210.24,210.15,0.72]
[1759098736392,38.18,210.27,210.15,0.72]
[1759098736619,1.52134186,210.25,210.15,0.72]
[1759098736932,26.0,210.22,210.17,4.782]
[1759098737300,1.52134186,210.19,210.17,4.782]
[1759098737521,1.72134186,210.23,210.18,0.72]
[1759098737725,0.2,210.23,210.18,0.72]
[1759098737894,0.2,210.23,210.18,5.502]
[1759098738091,0.2,210.23,210.19,0.72]
[1759098738520,1.72134186,210.23,210.2,0.72]
[1759098738802,1.72134186,210.23,210.21,0.72]
[1759098739021,0.2,210.23,210.19,0.72]
[1759098739218,1.52134186,210.22,210.19,0.72]
[1759098739524,0.2,210.23,210.2,0.72]
[1759098740220,0.68,210.27,210.2,0.72]
[1759098740414,26.2,210.28,210.21,0.72]
[1759098740617,1.52134186,210.26,210.21,0.72]
[1759098740918,26.2,210.28,210.23,4.782]
[1759098741120,26.2,210.28,210.24,0.67]
[1759098741296,26.2,210.28,210.23,4.782]
[1759098741498,26.2,210.28,210.24,0.67]
[1759098741842,26.2,210.28,210.23,4.782]
[1759098741843,26.0,210.26,210.25,0.67]
[1759098742014,26.0,210.26,210.23,4.782]
[1759098742215,26.0,210.26,210.22,4.75692132]
[1759098742216,1.52134186,210.25,210.24,4.782]
[1759098742421,0.2,210.28,210.24,4.782]
[1759098742718,1.52134186,210.25,210.24,4.782]
[1759098742896,0.9,210.28,210.24,4.782]
[1759098743095,1.52134186,210.25,210.24,4.782]
[1759098743298,14.29559401,210.25,210.24,4.782]
[1759098743501,15.81693587,210.25,210.24,4.782]
[1759098744807,14.29559401,210.25,210.24,4.782]
[1759098745126,15.81693587,210.25,210.24,4.782]
[1759098745323,20.57317843,210.25,210.24,4.782]
[1759098745620,1.52134186,210.25,210.24,4.782]
[1759098745825,0.2,210.28,210.24,5.452]
[1759098746009,0.2,210.28,210.25,0.67]
[1759098746211,26.2,210.28,210.25,0.67]
[1759098746414,26.2,210.28,210.25,5.452]
[1759098746730,28.42134186,210.28,210.25,4.782]
[1759098747430,27.72134186,210.28,210.21,5.452]
[1759098747723,1.52134186,210.24,210.21,4.782]
[1759098747901,0.7,210.23,210.21,4.782]
[1759098748105,15.81693587,210.22,210.21,4.782]
[1759098748302,17.29277775,210.22,210.21,4.782]
[1759098748926,17.99277775,210.22,210.21,4.782]
[1759098749340,34.64200237,210.22,210.21,4.782]
[1759098749703,34.64200237,210.22,210.21,4.682]
[1759098749908,22.74969907,210.22,210.21,4.682]
[1759098750103,14.29559401,210.22,210.21,4.682]
[1759098750317,57.17277775,210.22,210.21,4.682]
[1759098750826,13.59559401,210.22,210.21,4.682]
[1759098751001,52.77559401,210.22,210.21,4.682]
[1759098751421,52.77559401,210.22,210.13,4.682]
[1759098751629,53.37559401,210.22,210.14,0.67]
[1759098751803,26.0,210.18,210.14,0.67]
[1759098752207,26.0,210.18,210.15,0.67]
[1759098752629,23.56068163,210.17,210.14,4.682]
[1759098753406,24.26068163,210.17,210.14,4.682]
[1759098753722,24.26068163,210.17,210.08,4.682]
[1759098754428,13.59559401,210.22,210.12,4.682]
[1759098754632,0.7,210.25,210.08,4.76002387]
[1759098754633,13.59559401,210.24,210.14,4.682]
[1759098754826,13.59559401,210.24,210.15,0.67]
[1759098755137,4.39718374,210.27,210.16,4.682]
[1759098755429,26.0,210.23,210.18,4.682]
[1759098755733,29.69718374,210.23,210.19,5.352]
[1759098755941,3.69718374,210.23,210.2,0.67]
[1759098756111,3.69718374,210.23,210.21,0.67]
[1759098756509,26.0,210.24,210.21,0.67]
[1759098756711,3.69718374,210.23,210.21,0.67]
[1759098757713,3.69718374,210.23,210.2,4.682]
[1759098757911,3.69718374,210.23,210.2,5.352]
[1759098758644,4.39718374,210.23,210.2,4.682]
[1759098758848,4.39718374,210.23,210.21,4.682]
[1759098759134,4.39718374,210.22,210.21,4.682]
[1759098760733,13.59559401,210.23,210.22,4.682]
[1759098760915,17.99277775,210.23,210.22,4.682]
[1759098761120,14.29559401,210.23,210.22,4.682]
[1759098761445,22.74947279,210.23,210.22,4.682]
[1759098762119,61.88947279,210.23,210.22,4.682]
[1759098763532,3.69718374,210.23,210.22,4.682]
[1759098763737,29.69718374,210.23,210.22,4.682]
[1759098764230,31.39411954,210.23,210.22,4.682]
[1759098764829,0.2,210.28,210.23,4.682]
[1759098765019,5.59411954,210.28,210.23,10.10861581]
[1759098765219,5.59411954,210.28,210.24,0.67]
[1759098765530,0.7,210.27,210.23,4.682]
[1759098765721,5.39411954,210.25,210.23,5.352]
[1759098765921,5.39411954,210.25,210.12,39.12]
[1759098765922,5.39411954,210.25,210.24,5.352]
[1759098766955,5.39411954,210.25,210.24,0.67]
[1759098767946,5.39411954,210.25,210.21,0.67]
[1759098768153,5.39411954,210.25,210.22,0.67]
[1759098768448,5.39411954,210.25,210.2,4.682]
[1759098768746,5.39411954,210.25,210.21,0.67]
[1759098768948,5.39411954,210.25,210.19,0.67]
[1759098769447,5.39411954,210.22,210.18,4.682]
[1759098769641,5.39411954,210.22,210.18,5.352]
[1759098769949,5.39411954,210.22,210.18,0.67]
[1759098770141,0.7,210.21,210.16,4.682]
[1759098770638,31.39411954,210.19,210.16,4.682]
[1759098771139,31.39411954,210.19,210.15,0.67]
[1759098771320,31.39411954,210.19,210.12,9.44114601]
[1759098771520,31.39411954,210.19,210.13,0.66]
[1759098771749,26.0,210.18,210.13,0.66]
[1759098772937,26.0,210.18,210.14,0.66]
[1759098773142,26.0,210.18,210.15,0.66]
[1759098773337,26.0,210.18,210.13,4.682]
[1759098773338,26.0,210.18,210.16,0.66]
[1759098775338,26.0,210.18,210.13,9.44093873]
[1759098775647,26.0,210.18,210.14,0.66]
[1759098775845,0.69,210.17,210.14,4.682]
[1759098776154,26.0,210.18,210.15,0.66]
[1759098776559,26.0,210.18,210.14,4.682]
[1759098776755,26.0,210.18,210.14,0.66]
[1759098776950,26.0,210.18,210.15,0.66]
[1759098777556,26.0,210.18,210.12,0.66]
[1759098777741,26.0,210.18,210.13,4.682]
[1759098777942,26.0,210.18,210.14,0.66]
[1759098778141,26.0,210.18,210.14,5.342]
[1759098778733,26.0,210.18,210.14,4.682]
[1759098779051,26.69,210.18,210.12,4.682]
[1759098779241,26.69,210.18,210.12,5.342]
[1759098779756,0.69,210.17,210.12,4.682]
[1759098779944,0.69,210.16,210.12,4.682]
[1759098780146,0.69,210.16,210.09,0.66]
[1759098780147,0.69,210.15,210.09,0.66]
[1759098780349,6.08411954,210.15,210.06,5.342]
[1759098780658,26.0,210.08,210.06,4.682]
[1759098781255,26.0,210.08,209.95,49.81472869]
[1759098781256,0.69,210.07,210.01,0.66]
[1759098781632,26.0,210.06,210.01,0.66]
[1759098781832,0.69,210.05,209.99,4.682]
[1759098782236,0.69,210.05,210.0,4.682]
[1759098782434,0.69,210.04,210.0,4.682]
[1759098782664,26.69,210.04,210.0,4.682]
[1759098782962,26.0,210.04,210.0,4.682]
[1759098783259,14.28559401,210.03,210.01,4.682]
[1759098783646,14.28559401,210.02,210.01,4.682]
[1759098784530,19.0470453,210.02,210.01,4.682]
[1759098784768,14.28559401,210.02,210.01,4.682]
[1759098784930,0.69,210.05,210.01,4.682]
[1759098785131,26.0,210.03,210.01,4.682]
[1759098785367,39.59559401,210.03,210.02,4.682]
[1759098785737,40.28559401,210.03,210.02,4.682]
[1759098786038,50.44093813,210.03,210.02,4.682]
[1759098786671,45.04681859,210.03,210.02,4.682]
[1759098786922,50.44093813,210.03,210.02,4.682]
[1759098787375,13.59559401,210.02,209.92,0.66]
[1759098787534,26.0,209.96,209.91,4.682]
[1759098787734,26.0,209.96,209.92,0.66]
[1759098787955,26.0,209.96,209.93,5.342]
[1759098788151,26.0,209.96,209.94,0.66]
[1759098788364,13.59559401,210.03,209.95,0.66]
[1759098788664,26.0,210.0,209.95,0.66]
[1759098788846,26.0,210.0,209.96,5.342]
[1759098789056,26.0,210.0,209.97,5.342]
[1759098789838,26.0,210.0,209.97,4.682]
[1759098790154,26.0,210.0,209.98,4.682]
[1759098791073,26.0,210.0,209.99,4.682]
[1759098792183,26.0,210.0,209.97,5.342]
[1759098792887,26.0,210.0,209.98,0.66]
[1759098793066,26.0,210.0,209.99,0.66]
[1759098793580,26.0,210.01,209.99,0.66]
[1759098793951,26.0,210.01,209.97,10.10447844]
[1759098794156,26.0,210.01,209.98,4.682]
[1759098794872,0.72,210.01,209.98,4.682]
[1759098795079,0.72,210.0,209.98,4.682]
[1759098795384,13.59559401,210.0,209.99,4.682]
[1759098795982,14.31559401,210.0,209.99,4.682]
[1759098797268,26.0,209.96,209.92,5.342]
[1759098797457,26.0,209.97,209.92,4.682]
[1759098797765,26.0,209.96,209.92,4.682]
[1759098798374,26.0,209.94,209.93,4.682]
[1759098798687,26.0,209.94,209.93,5.342]
[1759098798991,13.59559401,210.01,209.93,5.342]
[1759098799290,26.0,209.98,209.97,4.682]
[1759098799486,26.0,209.98,209.97,5.342]
[1759098800683,26.0,209.98,209.97,10.10458513]
[1759098800883,26.0,209.98,209.97,4.682]
[1759098801499,26.72,209.98,209.97,4.682]
[1759098801876,26.72,209.98,209.93,4.682]
[1759098802088,0.72,209.97,209.93,4.682]
[1759098802388,26.0,209.95,209.93,4.682]
[1759098802788,26.0,209.95,209.94,0.71]
[1759098803187,38.84,209.98,209.94,0.71]
[1759098803384,26.0,209.98,209.94,0.71]
[1759098804692,26.72,209.98,209.94,4.682]
[1759098804877,0.72,209.97,209.94,4.682]
[1759098805478,26.0,209.98,209.94,4.682]
[1759098805675,26.0,209.98,209.95,0.71]
[1759098805880,26.0,209.98,209.96,0.71]
[1759098806393,26.0,209.98,209.94,0.71]
[1759098806572,26.0,209.97,209.94,0.71]
[1759098806900,26.72,209.97,209.95,4.682]
[1759098807099,26.0,209.97,209.95,5.392]
[1759098807603,26.0,209.98,209.95,5.392]
[1759098807786,26.0,209.98,209.96,0.71]
[1759098807983,26.0,209.98,209.97,0.71]
[1759098808307,26.0,210.01,209.97,0.71]
[1759098808482,14.31559401,210.04,209.97,0.71]
[1759098808683,26.0,210.01,209.98,4.682]
[1759098809102,14.31559401,210.04,209.98,4.682]
[1759098809298,26.0,210.01,209.98,4.682]
[1759098809601,26.0,210.01,209.99,4.682]
[1759098809777,26.72,210.01,209.99,4.682]
[1759098810498,26.0,210.01,209.99,4.682]
[1759098810802,26.0,210.01,210.0,4.682]
[1759098811389,26.0,210.02,210.0,5.392]
[1759098811704,26.0,210.02,210.01,5.392]
[1759098812099,26.0,210.04,210.01,4.682]
[1759098812809,26.0,210.04,210.02,4.682]
[1759098813710,26.0,210.04,210.03,4.682]
[1759098815002,13.59559401,210.05,210.04,4.682]
[1759098815713,14.31559401,210.05,210.04,4.682]
[1759098815893,14.31559401,210.05,209.99,10.15405827]
[1759098818885,26.0,210.02,210.0,4.682]
[1759098819085,0.72,210.01,210.0,4.682]
[1759098820104,0.72,210.01,209.96,5.392]
[1759098820312,31.39411954,210.02,209.96,4.682]
[1759098820489,0.72,210.01,209.96,4.682]
[1759098820689,0.72,210.0,209.96,4.682]
[1759098821089,0.72,210.0,209.97,4.682]
[1759098821490,0.72,209.99,209.97,4.682]
[1759098821703,26.72,209.98,209.97,4.682]
[1759098822107,26.0,209.96,209.91,0.71]
[1759098822410,26.0,209.95,209.92,4.682]
[1759098822608,26.72,209.95,209.92,4.682]
[1759098823017,26.0,209.94,209.92,4.682]
[1759098823205,26.0,209.94,209.93,4.682]
[1759098823531,26.0,209.94,209.93,5.392]
[1759098823715,26.0,209.98,209.93,5.392]
[1759098823914,26.0,209.98,209.94,0.71]
[1759098824093,26.0,209.98,209.92,4.682]
[1759098824454,26.0,209.98,209.93,0.71]
[1759098824611,26.0,209.98,209.94,0.71]
[1759098825109,26.0,209.98,209.95,4.682]
[1759098825420,38.54,210.01,209.96,0.71]
[1759098825604,65.26,210.01,209.96,0.71]
[1759098825804,64.54,210.01,209.95,4.682]
[1759098826011,64.54,210.01,209.97,0.71]
[1759098826510,0.72,210.0,209.95,4.682]
[1759098826713,0.72,209.99,209.96,4.682]
[1759098826910,26.72,210.01,209.96,4.682]
[1759098827115,14.31559401,210.0,209.96,4.682]
[1759098827714,14.31559401,210.0,209.97,4.682]
[1759098828016,0.72,209.99,209.97,4.682]
[1759098828201,0.72,209.98,209.97,4.682]
[1759098829016,14.31559401,210.0,209.97,4.682]
[1759098829205,26.0,209.98,209.97,4.682]
[1759098829409,40.31559401,209.98,209.97,4.682]
[1759098829810,40.31559401,209.98,209.92,4.682]
[1759098830819,0.69,209.97,209.92,4.682]
[1759098830997,39.59559401,209.98,209.93,5.342]
[1759098831317,39.59559401,209.98,209.94,0.66]
[1759098831624,40.28559401,209.98,209.95,4.682]
[1759098831835,0.69,209.97,209.95,4.682]
[1759098832122,26.0,209.97,209.96,4.682]
[1759098832716,26.0,209.99,209.96,4.682]
[1759098833021,26.0,209.99,209.97,0.66]
[1759098833196,26.0,210.0,209.96,4.682]
[1759098833399,26.0,209.99,209.96,4.682]
[1759098834134,136.78584304,210.09,209.97,5.342]
[1759098834135,13.59559401,210.05,209.97,5.342]
[1759098834308,5.42341277,210.07,209.98,0.66]
[1759098834508,13.59559401,210.06,209.98,0.66]
[1759098834716,26.0,210.05,209.98,0.66]
[1759098835125,26.0,210.03,209.98,4.682]
[1759098835426,0.69,210.02,209.98,4.682]
[1759098835608,0.69,210.01,209.98,4.682]
[1759098836003,26.69,210.0,209.99,4.682]
[1759098836630,26.0,210.0,209.99,4.682]
[1759098836800,26.69,210.0,209.99,4.682]
[1759098839323,26.69,210.0,209.95,4.682]
[1759098839528,26.69,210.0,209.95,5.342]
[1759098840121,26.69,210.0,209.95,10.10485371]
[1759098840331,26.0,209.99,209.95,10.10485371]
[1759098840841,0.69,210.0,209.96,4.682]
[1759098840842,52.66559401,209.98,209.96,4.682]
[1759098841006,18.32939608,209.97,209.96,3.412]
[1759098841207,39.59559401,209.93,209.9,0.1]
[1759098841402,15.11866103,209.91,209.9,0.1]
[1759098841803,18.32927114,209.91,209.9,0.1]
[1759098842312,19.88260748,209.91,209.9,0.1]
[1759098842636,23.08985163,209.91,209.9,0.1]
[1759098843216,19.88260748,209.91,209.9,0.1]
[1759098844228,39.59559401,209.88,209.87,0.1]
[1759098844420,81.70596237,209.88,209.87,0.1]
[1759098844737,1.91227441,209.92,209.87,0.76]
[1759098844941,26.0,209.89,209.88,0.66]
[1759098845119,26.0,209.89,209.88,5.437]
[1759098845734,51.99559401,209.94,209.88,5.437]
[1759098845936,26.0,209.91,209.89,0.66]
[1759098846110,26.0,209.91,209.9,0.66]
[1759098846310,3.71036836,209.98,209.9,5.437]
[1759098846514,26.0,209.94,209.91,0.66]
[1759098846714,26.0,209.94,209.92,0.66]
[1759098847527,13.59559401,209.99,209.93,0.66]
[1759098847822,26.0,209.96,209.93,0.66]
[1759098848018,38.4,210.0,209.93,0.66]
[1759098848324,38.4,210.0,209.95,4.777]
[1759098848519,26.0,209.97,209.96,0.66]
[1759098848928,26.0,209.97,209.96,5.437]
[1759098849136,26.0,210.0,209.96,5.437]
[1759098849312,26.0,209.98,209.96,5.437]
[1759098849923,26.0,209.98,209.96,0.66]
[1759098851143,26.0,210.0,209.97,0.66]
[1759098852242,26.0,210.0,209.95,4.777]
[1759098852439,38.4,210.03,209.98,0.66]
[1759098852631,38.4,210.03,209.99,5.42191275]
[1759098852944,26.0,210.01,210.0,5.437]
[1759098853636,26.0,210.03,210.0,4.777]
[1759098854638,26.0,210.03,210.01,4.777]
[1759098854818,13.59559401,210.02,210.01,4.777]
[1759098855225,39.59559401,210.02,210.01,4.777]
[1759098856237,77.99559401,210.02,210.01,4.777]
[1759098856435,81.70596237,210.02,210.01,4.777]
[1759098856832,86.46744165,210.02,209.92,4.777]
[1759098857136,86.46744165,210.02,209.92,5.437]
[1759098857837,86.46744165,210.02,209.93,4.777]
[1759098858044,39.59559401,209.94,209.93,4.777]
[1759098858226,77.99559401,209.94,209.93,4.777]
[1759098858846,82.7588597,209.94,209.93,4.777]
[1759098859843,82.7588597,209.94,209.87,0.1]
[1759098860042,13.59559401,209.89,209.87,0.1]
[1759098860348,51.99559401,209.89,209.87,0.1]
[1759098861339,55.70596237,209.89,209.87,0.1]
[1759098864743,60.47046278,209.89,209.87,0.1]
[1759098868251,20.27277012,209.88,209.87,0.1]
[1759098868753,18.36022141,209.88,209.87,0.1]
[1759098869654,60.47058977,209.88,209.87,0.1]
[1759098873031,22.07058977,209.88,209.87,0.1]
[1759098873235,60.47058977,209.88,209.87,0.1]
[1759098874162,56.76022141,209.88,209.87,0.1]
[1759098874960,51.99559401,209.88,209.87,0.1]
[1759098876163,56.76022141,209.88,209.87,0.1]
[1759098877042,51.99559401,209.88,209.87,0.8]
[1759098877242,51.99559401,209.88,209.87,0.1]
[1759098877463,56.76022141,209.88,209.87,0.1]
[1759098877652,51.99559401,209.88,209.87,0.1]
[1759098878360,56.76022141,209.88,209.87,0.1]
[1759098878542,51.99559401,209.88,209.87,0.8]
[1759098878741,51.99559401,209.88,209.87,0.1]
[1759098878937,56.76022141,209.88,209.87,0.1]
[1759098879972,51.99559401,209.88,209.87,0.1]
[1759098880148,51.99559401,209.88,209.87,0.8]
[1759098880348,51.99559401,209.88,209.87,0.1]
[1759098881144,56.76022141,209.88,209.87,0.1]
[1759098881651,51.99559401,209.88,209.87,0.8]
[1759098881854,56.76022141,209.88,209.87,0.8]
[1759098882054,56.76022141,209.88,209.87,0.1]
[1759098882250,51.99559401,209.88,209.87,0.1]
[1759098882856,51.99559401,209.88,209.87,0.8]
[1759098884276,13.59559401,209.88,209.87,0.8]
[1759098884569,51.99559401,209.88,209.87,0.8]
[1759098885155,56.76022141,209.88,209.87,0.1]
[1759098885952,58.28580816,209.88,209.87,0.1]
[1759098886359,56.76022141,209.88,209.87,0.1]
[1759098886751,51.99559401,209.88,209.87,0.8]
[1759098888163,13.59559401,209.88,209.87,0.8]
[1759098888357,51.99559401,209.88,209.87,0.8]
[1759098891070,38.4,209.88,209.87,0.8]
[1759098891277,51.99559401,209.88,209.87,0.8]
[1759098891655,51.99559401,209.88,209.87,0.1]
[1759098891862,51.99559401,209.88,209.87,0.78]
[1759098893785,56.76022141,209.88,209.87,0.1]
[1759098894658,51.99559401,209.88,209.87,0.1]
[1759098894864,56.76022141,209.88,209.87,0.1]
[1759098895756,51.99559401,209.88,209.87,0.1]
[1759098896970,56.76022141,209.88,209.87,0.1]
[1759098897785,132.8,209.93,209.87,0.78]
[1759098897956,51.97559401,209.92,209.87,0.78]
[1759098898157,51.97559401,209.92,209.87,0.1]
[1759098898364,39.59559401,209.88,209.87,0.1]
[1759098898578,77.97559401,209.88,209.87,0.1]
[1759098899982,77.97559401,209.88,209.87,0.78]
[1759098900186,82.74022141,209.88,209.87,0.1]
[1759098900986,88.33021609,209.88,209.87,0.1]
[1759098901281,83.56558869,209.88,209.87,0.1]
[1759098901463,42.801302,209.88,209.87,0.78]
[1759098901790,51.97559401,209.88,209.87,0.78]
[1759098903264,55.19039866,209.88,209.87,0.78]
[1759098904082,59.95502606,209.88,209.87,0.1]
[1759098904691,55.19039866,209.88,209.87,0.1]
[1759098904989,55.19039866,209.88,209.87,0.78]
[1759098905290,3.21480465,209.88,209.87,0.78]
[1759098905478,51.97559401,209.88,209.87,0.78]
[1759098905800,55.19039866,209.88,209.87,0.78]
[1759098907892,3.99856339,209.97,209.87,10.32185443]
[1759098908066,38.38,209.96,209.88,0.68]
[1759098908261,26.0,209.92,209.88,0.68]
[1759098908475,27.48,209.95,209.88,0.68]
[1759098908894,26.0,209.92,209.88,0.68]
[1759098909394,26.0,209.92,209.87,0.1]
[1759098909582,26.0,209.92,209.88,0.68]
[1759098909982,26.0,209.92,209.89,0.68]
[1759098910289,64.38,209.91,209.87,0.1]
[1759098910588,64.38,209.91,209.88,0.68]
[1759098910767,64.38,209.91,209.87,0.1]
[1759098910970,64.38,209.91,209.87,0.78]
[1759098911176,64.38,209.91,209.88,0.68]
[1759098912393,64.38,209.91,209.87,0.1]
[1759098912696,64.38,209.91,209.88,0.7]
[1759098913901,26.0,209.88,209.87,4.877]
[1759098914076,38.36,209.89,209.87,5.577]
[1759098914588,64.36,209.89,209.88,0.7]
[1759098914782,51.95559401,209.9,209.88,4.777]
[1759098915892,51.95559401,209.9,209.89,4.777]
[1759098917089,13.59559401,209.9,209.88,0.7]
[1759098917388,38.36,209.89,209.87,0.1]
[1759098917972,38.36,209.89,209.87,0.8]
[1759098918871,26.0,209.88,209.87,0.8]
[1759098919071,38.36,209.89,209.87,0.8]
[1759098919694,38.36,209.89,209.87,0.1]
[1759098919895,38.36,209.89,209.87,0.8]
[1759098920387,38.34,209.9,209.88,0.7]
[1759098920589,26.0,209.88,209.87,0.1]
[1759098921293,26.0,209.88,209.87,4.877]
[1759098921898,65.06,209.88,209.87,4.877]
[1759098922485,64.34,209.88,209.87,4.877]
[1759098923498,64.34,209.88,209.87,0.1]
[1759098924608,78.65559401,209.88,209.87,0.1]
[1759098924772,83.42022141,209.88,209.87,0.1]
[1759098925102,89.01681083,209.88,209.87,0.1]
[1759098925604,81.14789674,209.88,209.87,0.1]
[1759098925902,81.86789674,209.88,209.87,0.1]
[1759098926194,86.63252414,209.88,209.87,0.1]
[1759098926989,81.86789674,209.88,209.87,0.1]
[1759098927793,86.63252414,209.88,209.87,0.1]
[1759098927982,0.72,209.92,209.87,0.1]
[1759098928294,52.65559401,209.91,209.87,0.81]
[1759098928600,26.0,209.88,209.87,0.81]
[1759098928776,11.90658607,209.97,209.87,0.1]
[1759098928980,13.59559401,209.93,209.88,0.71]